bitfinex-derivatives/quotes_SOLF0:USTF0_20250127
["timestamp","ask_amount","ask_price","bid_price","bid_amount"]
[1737985926440,26.50035925,231.73,231.53,26.52959867]
[1737985926646,26.50035925,231.73,231.53,26.50035925]
[1737985926842,4.3163,231.71,231.53,26.50035925]
[1737985927049,26.50035925,231.77,231.58,4.3185]
[1737985927248,26.50035925,231.77,231.53,26.50035925]
[1737985927648,0.03081181,231.67,231.63,0.03067643]
[1737985928048,26.50035925,231.77,231.57,26.50035925]
[1737985928248,0.02879421,231.67,231.53,26.50035925]
[1737985928443,26.50035925,231.61,231.44,74.18]
[1737985928843,0.0323328,231.55,231.44,74.18]
[1737985929047,0.0323328,231.55,231.45,26.50035925]
[1737985929247,4.3178,231.63,231.51,4.3198]
[1737985929446,26.50035925,231.74,231.54,26.50035925]
[1737985930051,26.50035925,231.82,231.58,26.50035925]
[1737985930353,2.7416,231.83,231.58,26.50035925]
[1737985930354,26.50035925,231.78,231.58,26.50035925]
[1737985930552,4.3166,231.69,231.68,0.03083263]
[1737985930853,26.50035925,231.7,231.49,26.50035925]
[1737985931052,26.50035925,231.66,231.48,1.3539]
[1737985931553,26.50035925,231.7,231.48,1.3539]
[1737985931746,26.50035925,231.7,231.49,26.50035925]
[1737985931946,0.0325015,231.61,231.49,26.50035925]
[1737985932156,0.0325015,231.61,231.57,0.03185871]
[1737985933753,0.0325015,231.61,231.44,74.18]
[1737985933953,26.50035925,231.54,231.36,26.50035925]
[1737985934149,4.3213,231.44,231.34,4.323]
[1737985934354,26.50035925,231.5,231.28,26.50035925]
[1737985934952,0.02953378,231.41,231.37,0.03123331]
[1737985935548,4.3223,231.39,231.37,0.03123331]
[1737985936051,0.02953378,231.41,231.37,0.03123331]
[1737985937058,0.02953378,231.41,231.37,3.331e-05]
[1737985937357,26.50035925,231.38,231.37,3.331e-05]
[1737985937553,26.50035925,231.38,231.25,1.6579]
[1737985937758,4.3234,231.33,231.25,1.6579]
[1737985938057,26.50035925,231.38,231.25,1.6579]
[1737985938454,26.50035925,231.43,231.25,1.6579]
[1737985938657,0.02819149,231.34,231.29,0.03082695]
[1737985938852,4.321,231.46,231.32,4.3234]
[1737985939159,26.50035925,231.51,231.31,26.50035925]
[1737985939360,26.50035925,231.55,231.31,26.50035925]
[1737985939658,26.50035925,231.55,231.35,26.50035925]
[1737985939859,4.32,231.51,231.41,4.3216]
[1737985940058,26.50035925,231.55,231.35,26.50035925]
[1737985940559,0.02952601,231.47,231.43,0.0301155]
[1737985941451,4.3211,231.45,231.43,0.0301155]
[1737985941759,4.3211,231.45,230.89,4.308]
[1737985941760,26.50035925,231.46,231.27,27.88965925]
[1737985941958,0.02952601,231.47,231.27,27.88965925]
[1737985942257,1.4427,231.6,231.14,26.50035925]
[1737985942258,26.50035925,231.37,231.14,26.50035925]
[1737985942456,26.50035925,231.37,231.15,1.3893]
[1737985942657,26.50035925,231.33,231.15,2.8052]
[1737985942959,0.02965843,231.28,231.24,0.02778449]
[1737985943154,26.50035925,231.37,231.15,2.8052]
[1737985943460,0.03182137,231.28,231.24,0.02864464]
[1737985943653,4.3232,231.34,231.24,0.02864464]
[1737985943858,0.03111202,231.28,231.24,0.02864464]
[1737985944051,26.50035925,231.37,231.24,0.02864464]
[1737985944254,4.3237,231.31,231.24,0.02864464]
[1737985944459,0.03264853,231.33,231.24,0.02864464]
[1737985944758,26.53300778,231.33,231.24,0.02864464]
[1737985946156,4.3237,231.31,231.24,0.02864464]
[1737985946356,26.53300778,231.33,231.24,0.02864464]
[1737985947155,26.50035925,231.29,231.24,0.02864464]
[1737985947658,4.3246,231.26,231.24,0.02864464]
[1737985948564,26.50035925,231.25,231.08,1.6451]
[1737985948758,3.82,231.32,230.94,26.50035925]
[1737985948759,26.50035925,231.16,230.94,26.50035925]
[1737985949060,26.50035925,231.2,230.98,26.50035925]
[1737985949463,26.50035925,231.2,230.99,1.6854]
[1737985949667,0.03066221,231.11,231.07,0.02806465]
[1737985949866,0.03066221,231.11,231.09,4.3277]
[1737985950168,4.3246,231.26,231.07,0.02806465]
[1737985950366,26.50035925,231.28,231.07,1.41906465]
[1737985950562,26.50035925,231.2,231.08,1.3438]
[1737985950765,4.3264,231.17,231.1,4.3275]
[1737985950966,26.50035925,231.2,231.01,2.7348]
[1737985951169,26.50035925,231.24,231.02,26.50035925]
[1737985951366,26.50035925,231.2,231.02,26.50035925]
[1737985951563,26.50035925,231.12,231.08,3.367e-05]
[1737985951767,26.50035925,231.12,230.91,1.3438]
[1737985951963,26.50035925,231.09,230.91,1.3438]
[1737985952267,4.3274,231.11,230.91,1.3438]
[1737985952569,4.3274,231.11,231.03,4.3288]
[1737985952867,26.50035925,231.13,230.91,1.3438]
[1737985953069,0.03019311,231.09,231.05,0.03267699]
[1737985953363,0.03283649,231.09,231.05,0.0273432]
[1737985954369,26.53319574,231.09,230.81,26.50035925]
[1737985954565,26.50035925,231.01,230.77,4.4698]
[1737985954769,26.50035925,231.01,230.8,26.50035925]
[1737985955568,0.03318577,230.93,230.88,0.03278909]
[1737985955769,0.03318577,230.93,230.89,4.3316]
[1737985956564,0.03318577,230.93,230.88,0.03278909]
[1737985956769,0.03318577,230.93,230.91,4.3312]
[1737985957068,0.03318577,230.93,230.88,0.03278909]
[1737985957671,0.03318577,230.93,230.88,4.36458909]
[1737985957869,0.03318577,230.93,230.88,0.03278909]
[1737985959370,0.03318577,230.93,230.91,4.3313]
[1737985960172,0.03318577,230.93,230.88,0.03278909]
[1737985963367,4.3315,230.91,230.88,0.03278909]
[1737985963571,0.03318577,230.93,230.88,0.03278909]
[1737985964473,4.3313,230.92,230.88,0.03278909]
[1737985964674,0.03318577,230.93,230.88,0.03278909]
[1737985966274,4.36428577,230.93,230.88,0.03278909]
[1737985966475,0.03318577,230.93,230.88,0.03278909]
[1737985966877,26.50035925,231.06,230.88,0.03278909]
[1737985967073,26.50035925,231.06,230.84,26.50035925]
[1737985967274,1.3387,231.07,230.88,26.50035925]
[1737985967468,1.3387,231.07,230.89,1.3685]
[1737985967675,26.50035925,231.14,230.89,1.3685]
[1737985967875,26.50035925,231.14,230.92,26.50035925]
[1737985968069,0.02927022,231.04,230.99,0.03089269]
[1737985970974,4.3296,231.0,230.99,0.03089269]
[1737985971378,0.02927022,231.04,230.99,0.03089269]
[1737985972475,0.02927022,231.04,231.01,4.3292]
[1737985972678,0.02927022,231.04,230.99,0.03089269]
[1737985972876,4.3292,231.02,230.99,0.03089269]
[1737985973080,0.02927022,231.04,230.99,0.03089269]
[1737985974076,4.3293,231.02,230.99,0.03089269]
[1737985974280,0.02927022,231.04,230.99,0.03089269]
[1737985974681,4.35827022,231.04,230.99,0.03089269]
[1737985974980,0.02927022,231.04,230.99,0.03089269]
[1737985975181,4.3296,231.0,230.99,0.03089269]
[1737985975477,4.3296,231.0,230.88,4.3317]
[1737985975478,0.02927022,231.04,230.83,27.93625925]
[1737985975678,4.33,230.99,230.91,4.3312]
[1737985975874,26.50035925,231.05,230.84,1.4466]
[1737985976173,4.3306,230.95,230.87,4.332]
[1737985976375,26.50035925,231.01,230.79,26.50035925]
[1737985976578,0.0314768,230.93,230.89,0.03090087]
[1737985977485,26.50035925,231.09,230.89,0.03090087]
[1737985977673,26.50035925,231.09,230.87,26.50035925]
[1737985978175,4.329,231.04,230.87,26.50035925]
[1737985978383,26.50035925,231.09,230.87,26.50035925]
[1737985978576,27.91855925,231.13,230.91,26.50035925]
[1737985978779,27.91855925,231.13,230.93,0.03322286]
[1737985978979,27.91855925,231.13,230.92,2.7431]
[1737985979381,4.3287,231.05,230.92,2.7431]
[1737985979882,4.3289,231.04,230.97,4.33]
[1737985980083,0.03270495,231.01,230.97,4.33]
[1737985980283,0.03270495,231.01,230.96,0.03190048]
[1737985981182,4.3302,230.97,230.96,4.8e-07]
[1737985982587,3.0756,230.99,230.71,26.50035925]
[1737985982778,26.50035925,230.87,230.67,26.50035925]
[1737985982980,3.0756,230.99,230.63,3.1468]
[1737985982981,26.50035925,230.83,230.65,1.3258]
[1737985983185,4.3337,230.78,230.63,29.64715925]
[1737985983380,4.3337,230.78,230.67,4.3358]
[1737985983580,26.50035925,230.83,230.63,29.64715925]
[1737985983781,0.0329657,230.79,230.75,0.02756845]
[1737985984789,4.3337,230.78,230.75,0.02756845]
[1737985985588,4.3347,230.73,230.59,26.50035925]
[1737985985789,26.50035925,230.71,230.5,26.50035925]
[1737985985988,26.50035925,230.75,230.54,26.50035925]
[1737985986190,26.50035925,230.79,230.58,26.50035925]
[1737985986385,2.9756,230.85,230.51,2.27964131]
[1737985986386,26.50035925,230.83,230.62,26.50035925]
[1737985986583,1.3631,230.85,230.67,26.50035925]
[1737985986988,1.998e-05,230.75,230.7,0.02794658]
[1737985987289,26.50035925,230.87,230.67,26.50035925]
[1737985987491,26.50035925,230.87,230.64,1.4293]
[1737985987789,26.50035925,230.87,230.63,27.91235925]
[1737985987989,26.50035925,230.91,230.67,26.50035925]
[1737985988192,0.03166732,230.77,230.73,0.02887912]
[1737985988387,26.50035925,230.91,230.73,0.02887912]
[1737985988589,4.3319,230.88,230.71,26.50035925]
[1737985988790,26.50035925,230.91,230.71,26.50035925]
[1737985989091,26.50035925,230.87,230.64,1.4293]
[1737985989392,26.50035925,230.83,230.64,1.4293]
[1737985989593,0.03330439,230.78,230.73,0.03131959]
[1737985990895,26.50035925,230.75,230.55,26.50035925]
[1737985991093,26.50035925,230.75,230.56,1.3078]
[1737985991288,26.50035925,230.75,230.57,0.86741553]
[1737985991489,26.50035925,230.79,230.59,26.50035925]
[1737985991688,27.92915925,230.83,230.59,26.50035925]
[1737985991894,4.3342,230.76,230.67,4.3357]
[1737985992094,0.02757852,230.73,230.69,0.02945025]
[1737985992294,27.92915925,230.83,230.59,26.50035925]
[1737985992594,0.03136204,230.73,230.69,4.36762105]
[1737985992790,27.92915925,230.83,230.59,26.50035925]
[1737985992995,4.3352,230.7,230.69,0.0331004]
[1737985993193,0.02734548,230.73,230.69,0.0331004]
[1737985993396,26.50035925,230.75,230.57,0.86741553]
[1737985993594,0.03017082,230.73,230.69,0.02866649]
[1737985993889,26.50035925,230.75,230.57,0.86741553]
[1737985994094,0.02970239,230.73,230.69,0.02776899]
[1737985994295,26.50035925,230.75,230.57,2.24691553]
[1737985994488,0.02872646,230.73,230.69,0.03339263]
[1737985994687,26.50035925,230.75,230.57,2.24691553]
[1737985994893,0.02742202,230.73,230.69,0.0297482]
[1737985995190,4.36295201,230.73,230.69,0.02892281]
[1737985995394,0.02825201,230.73,230.69,0.02892281]
[1737985996196,4.3356,230.68,230.59,4.3371]
[1737985996494,26.50035925,230.66,230.57,0.86741553]
[1737985996893,4.3374,230.59,230.57,0.86741553]
[1737985997090,1.3453,230.65,230.48,4.3392]
[1737985997290,1.3453,230.65,230.47,2.7349]
[1737985997596,0.02899937,230.59,230.54,0.02768998]
[1737985999294,0.02899937,230.59,230.54,8.998e-05]
[1737985999893,4.3379,230.56,230.54,8.998e-05]
[1737986000393,26.50035925,230.55,230.35,4.3416]
[1737986000698,26.50035925,230.47,230.25,27.94045925]
[1737986000996,26.50035925,230.51,230.29,26.50035925]
[1737986001493,0.02765162,230.48,230.44,0.03028275]
[1737986002495,0.02765162,230.48,230.46,4.3396]
[1737986002797,26.50035925,230.63,230.44,0.03028275]
[1737986002998,4.3373,230.59,230.46,4.3396]
[1737986003197,26.50035925,230.63,230.41,26.68008925]
[1737986003393,26.50035925,230.67,230.45,26.50035925]
[1737986003597,4.3364,230.64,230.52,4.3384]
[1737986003793,26.50035925,230.67,230.54,0.0312723]
[1737986003995,0.0312853,230.58,230.54,0.0312723]
[1737986004199,26.50035925,230.67,230.54,0.0312723]
[1737986004403,0.03098729,230.58,230.54,0.0312723]
[1737986004697,26.50035925,230.57,230.54,0.0312723]
[1737986005098,4.3378,230.56,230.54,0.0312723]
[1737986005299,26.50035925,230.57,230.54,0.0312723]
[1737986005799,0.03139891,230.58,230.54,0.0312723]
[1737986006000,26.50035925,230.57,230.54,0.0312723]
[1737986007199,0.03139891,230.58,230.54,0.0312723]
[1737986007697,4.3378,230.56,230.54,0.0312723]
[1737986008097,4.3378,230.56,230.54,7.23e-05]
[1737986008303,27.94525925,230.57,230.4,181.4174139]
[1737986008500,26.50035925,230.53,230.4,181.4174139]
[1737986008995,26.50035925,230.45,230.4,181.4174139]
[1737986009198,26.50035925,230.41,230.4,179.08641466]
[1737986009392,26.50035925,230.41,230.4,30.84718644]
[1737986009594,26.50035925,230.41,230.4,3.60938644]
[1737986009800,26.50035925,230.41,230.4,8.644e-05]
[1737986010403,4.3408,230.4,230.38,0.02939093]
[1737986010603,0.03194025,230.43,230.38,0.02939093]
[1737986010997,26.50035925,230.41,230.38,0.02939093]
[1737986011301,0.03194025,230.43,230.38,0.02939093]
[1737986011502,4.3403,230.42,230.38,0.02939093]
[1737986011699,0.03194025,230.43,230.38,0.02939093]
[1737986012098,26.50035925,230.41,230.38,9.093e-05]
[1737986012401,0.03194025,230.43,230.38,9.093e-05]
[1737986012702,4.3405,230.4,230.38,9.093e-05]
[1737986013104,0.03194025,230.43,230.38,9.093e-05]
[1737986014402,30.84085925,230.4,230.38,9.093e-05]
[1737986014604,4.3405,230.4,230.38,9.093e-05]
[1737986015007,0.03194025,230.43,230.38,9.093e-05]
[1737986016800,26.50035925,230.56,230.41,4.3402]
[1737986017009,26.50035925,230.61,230.39,29.55075925]
[1737986017210,26.50035925,230.57,230.39,3.0504]
[1737986017707,4.337,230.59,230.39,29.55075925]
[1737986017907,26.50035925,230.61,230.39,29.55075925]
[1737986018109,0.02881108,230.51,230.47,0.02872619]
[1737986018408,26.50035925,230.61,230.39,30.41885248]
[1737986018807,0.02950901,230.51,230.47,0.03091505]
[1737986019209,26.50035925,230.61,230.39,30.41885248]
[1737986019508,0.02830543,230.51,230.47,0.03104623]
[1737986019809,4.3374,230.57,230.39,30.41885248]
[1737986020008,0.02958978,230.51,230.47,0.02992925]
[1737986020311,26.50035925,230.61,230.39,30.41885248]
[1737986020512,0.03172868,230.51,230.47,0.02864387]
[1737986020810,26.50035925,230.65,230.43,26.50035925]
[1737986021010,0.02953832,230.51,230.47,0.02757456]
[1737986021210,26.50035925,230.65,230.43,26.50035925]
[1737986021511,0.03120795,230.51,230.47,0.03000388]
[1737986021706,26.50035925,230.65,230.43,26.50035925]
[1737986022006,26.50035925,230.65,230.47,4.339]
[1737986022007,4.3374,230.57,230.47,4.339]
[1737986022209,0.03155119,230.56,230.52,0.02941039]
[1737986022407,26.50035925,230.61,230.48,1.4359]
[1737986022605,0.03105379,230.56,230.52,0.02733896]
[1737986023008,4.338,230.54,230.52,0.02733896]
[1737986024107,0.03105379,230.56,230.52,0.02733896]
[1737986024713,4.338,230.53,230.52,0.02733896]
[1737986025213,30.83835925,230.53,230.52,3.896e-05]
[1737986026108,26.50035925,230.53,230.4,1.3706]
[1737986026313,0.03105379,230.56,230.23,26.50035925]
[1737986026314,26.50035925,230.49,230.23,26.50035925]
[1737986026514,26.50035925,230.49,230.26,2.9993]
[1737986026710,26.50035925,230.4,230.24,0.86865879]
[1737986027115,26.50035925,230.4,230.19,1.3359]
[1737986027314,0.03028804,230.32,230.27,0.0290073]
[1737986027715,26.50035925,230.48,230.27,0.0290073]
[1737986028013,26.50035925,230.48,230.27,26.50035925]
[1737986028210,4.3404,230.41,230.3,4.3423]
[1737986028413,26.50035925,230.44,230.23,26.50035925]
[1737986028608,26.50035925,230.44,230.19,31.93625925]
[1737986028813,26.50035925,230.44,230.23,26.50035925]
[1737986029013,0.03108461,230.34,230.29,0.02987718]
[1737986031715,26.50035925,230.43,230.29,0.02987718]
[1737986031917,26.50035925,230.36,230.19,1.3359]
[1737986032416,4.3419,230.33,230.23,4.3437]
[1737986032615,26.50035925,230.36,230.23,4.3437]
[1737986032917,0.03200061,230.32,230.27,0.02922497]
[1737986033116,26.50035925,230.44,230.3,4.3423]
[1737986033309,26.50035925,230.44,230.31,1.5989]
[1737986033914,26.50035925,230.48,230.31,1.5989]
[1737986034114,4.3398,230.44,230.31,1.5989]
[1737986034311,0.03277308,230.42,230.37,0.03175195]
[1737986035313,26.50035925,230.4,230.37,0.00146391]
[1737986035514,4.3407,230.39,230.37,0.00146391]
[1737986037019,0.03277308,230.42,230.37,0.00146391]
[1737986037716,4.3409,230.38,230.37,0.00146391]
[1737986037913,0.03277308,230.42,230.37,0.00146391]
[1737986038818,4.3409,230.38,230.37,0.00146391]
[1737986039421,0.03277308,230.42,230.37,0.00146391]
[1737986040617,26.50035925,230.52,230.37,0.00146391]
[1737986040920,4.3377,230.55,230.38,26.50035925]
[1737986041115,26.50035925,230.6,230.38,26.50035925]
[1737986041319,26.50035925,230.6,230.5,4.3385]
[1737986041517,4.3371,230.58,230.38,26.50035925]
[1737986041717,26.50035925,230.52,230.33,3.0338]
[1737986042020,0.02833674,230.5,230.46,8.177e-05]
[1737986042214,26.50035925,230.47,230.33,3.0338]
[1737986042620,26.87127528,230.42,230.33,3.0338]
[1737986042821,4.341,230.38,230.22,0.86873425]
[1737986043021,16.53520362,230.43,230.29,4.3426]
[1737986043220,0.0279691,230.32,230.28,0.0325999]
[1737986043521,16.53520362,230.39,230.23,2.9297]
[1737986043720,0.03042835,230.32,230.28,0.03136353]
[1737986043920,16.53520362,230.43,230.28,0.03136353]
[1737986044117,16.53520362,230.43,230.23,2.9297]
[1737986044424,4.3407,230.39,230.23,2.9297]
[1737986044619,16.53520362,230.47,230.23,2.9297]
[1737986044821,16.53520362,230.55,230.33,16.53520362]
[1737986045025,16.53520362,230.55,230.34,1.3532]
[1737986045418,4.3389,230.49,230.34,1.3532]
[1737986045622,16.53520362,230.55,230.34,1.3532]
[1737986045821,16.53520362,230.55,230.35,1.4329]
[1737986046017,16.53520362,230.59,230.37,16.53520362]
[1737986046223,0.03061405,230.47,230.43,0.03092808]
[1737986046420,8.6665,230.79,230.36,1.5884]
[1737986046421,16.53520362,230.64,230.42,16.53520362]
[1737986046725,16.49756102,230.65,230.43,16.49756102]
[1737986046919,16.49756102,230.56,230.36,1.5884]
[1737986047318,26.84536777,230.54,230.36,1.5884]
[1737986047520,0.03108712,230.48,230.44,0.02834239]
[1737986047919,26.84536777,230.62,230.44,0.02834239]
[1737986048120,4.3372,230.58,230.4,26.84536777]
[1737986048426,26.84536777,230.62,230.4,26.84536777]
[1737986048622,30.88536777,230.66,230.44,26.84536777]
[1737986049024,26.84536777,230.7,230.53,4.3379]
[1737986049224,26.84536777,230.7,230.54,1.6063]
[1737986049420,26.84536777,230.78,230.54,1.6063]
[1737986049623,4.3346,230.72,230.57,26.84536777]
[1737986049826,26.84536777,230.78,230.57,26.84536777]
[1737986050025,4.3352,230.69,230.57,4.3372]
[1737986050225,26.84536777,230.74,230.54,1.6063]
[1737986050525,0.02916889,230.65,230.61,4.36867683]
[1737986050725,4.3347,230.71,230.61,4.36867683]
[1737986050920,26.84536777,230.78,230.57,26.84536777]
[1737986051120,26.84536777,230.78,230.54,1.6063]
[1737986051121,26.84536777,230.82,230.67,4.3354]
[1737986051428,26.84536777,230.82,230.68,1.6698]
[1737986051923,0.03134774,230.77,230.73,0.03334444]
[1737986052121,26.84536777,230.74,230.62,1.4462]
[1737986052525,4.3357,230.66,230.62,1.4462]
[1737986053025,4.3348,230.71,230.62,1.4462]
[1737986053228,0.02802692,230.66,230.62,1.47893091]
[1737986053726,4.336,230.64,230.62,1.47893091]
[1737986054623,4.336,230.64,230.62,0.03273091]
[1737986055129,0.02802692,230.66,230.62,0.03273091]
[1737986055322,26.84536777,230.82,230.62,0.03273091]
[1737986055527,26.84536777,230.82,230.61,26.84536777]
[1737986055923,4.3337,230.76,230.62,1.4423]
[1737986056130,26.84536777,230.82,230.62,1.4423]
[1737986056529,0.03147773,230.74,230.7,0.0312051]
[1737986057029,4.3345,230.72,230.7,0.0312051]
[1737986057331,0.03147773,230.74,230.7,0.0312051]
[1737986058130,4.3345,230.72,230.7,0.0312051]
[1737986058925,26.84536777,230.73,230.59,1.6698]
[1737986059127,4.3371,230.59,230.54,1.4365]
[1737986059331,26.84536777,230.69,230.54,1.4365]
[1737986060128,26.84536777,230.69,230.59,0.03138118]
[1737986060426,4.3363,230.63,230.59,0.03138118]
[1737986060731,0.02822666,230.64,230.59,0.03138118]
[1737986060931,26.84536777,230.78,230.59,0.03138118]
[1737986061133,26.97896777,230.82,230.59,0.03138118]
[1737986061329,26.97896777,230.82,230.57,26.84536777]
[1737986061627,0.0963,230.87,230.69,26.84536777]
[1737986061825,26.84536777,230.9,230.7,3.0818]
[1737986062026,26.84536777,230.94,230.73,26.84536777]
[1737986062228,26.84536777,230.98,230.77,26.84536777]
[1737986062532,26.84536777,231.02,230.81,26.84536777]
[1737986062832,26.84536777,231.06,230.85,26.84536777]
[1737986063031,26.84536777,231.1,230.89,26.84536777]
[1737986063234,4.3286,231.04,230.92,4.3307]
[1737986063428,0.03072017,231.02,230.97,0.0303948]
[1737986066335,4.3295,230.99,230.97,0.0303948]
[1737986066636,26.84536777,230.98,230.77,26.84536777]
[1737986066836,26.84536777,230.98,230.72,3.94]
[1737986066837,26.84536777,230.94,230.73,31.38546777]
[1737986067039,26.84536777,230.9,230.73,4.5401]
[1737986067540,0.098,230.97,230.77,26.84536777]
[1737986067732,26.84536777,231.02,230.81,26.84536777]
[1737986067937,4.3303,230.95,230.81,26.84536777]
[1737986068139,26.84536777,231.02,230.82,1.4293]
[1737986069133,0.03013787,230.94,230.9,0.02892755]
[1737986069539,4.3289,231.02,230.91,4.3309]
[1737986069839,0.03224723,230.94,230.9,0.03297199]
[1737986070039,26.84536777,231.06,230.9,0.03297199]
[1737986070340,0.03322561,230.94,230.86,5.7399]
[1737986070635,26.84536777,231.1,230.89,26.84536777]
[1737986070839,26.84536777,231.1,230.94,4.3303]
[1737986071542,4.3288,231.03,230.9,4.331]
[1737986071737,0.03004513,231.04,231.0,0.02788467]
[1737986071937,0.03004513,231.04,230.89,26.84536777]
[1737986072140,4.33,230.97,230.87,1.7216]
[1737986072442,26.84536777,231.01,230.87,1.7216]
[1737986072648,4.3298,230.97,230.87,1.7216]
[1737986072843,4.3298,230.97,230.87,1.66797418]
[1737986072844,355.80833002,230.94,230.87,1.66797418]
[1737986073044,355.80833002,230.94,230.88,26.84536777]
[1737986073244,0.03202783,230.93,230.92,4.3307]
[1737986073443,330.70114057,230.94,230.92,4.3307]
[1737986074345,330.70114057,230.94,230.88,26.87385584]
[1737986074648,319.50874057,230.94,230.92,26.84536777]
[1737986074849,296.70984057,230.94,230.92,31.17606777]
[1737986075048,46.82508481,230.98,230.92,26.84536777]
[1737986075241,6.89962771,231.0,230.97,26.84536777]
[1737986075646,6.89962771,231.0,230.97,63.84536777]
[1737986076149,4.3299,230.97,230.89,26.84536777]
[1737986076350,6.89962771,231.0,230.96,0.0277827]
[1737986076550,6.89962771,231.0,230.89,26.84536777]
[1737986076850,6.89962771,231.0,230.96,0.03019088]
[1737986077251,6.89962771,231.0,230.84,26.84536777]
[1737986077445,6.89962771,231.0,230.96,0.03123854]
[1737986077647,2.9594,231.01,230.85,4.332]
[1737986077855,4.3298,230.97,230.96,0.03337579]
[1737986078154,2.9594,231.01,230.8,26.84536777]
[1737986078354,2.9594,231.01,230.85,26.84536777]
[1737986078546,2.9594,231.01,230.86,5.19802591]
[1737986078853,2.9594,231.01,230.86,0.86632591]
[1737986079152,0.02900255,230.96,230.91,0.02879833]
[1737986079545,4.3306,230.93,230.91,0.02879833]
[1737986079753,26.84536777,230.94,230.86,0.86632591]
[1737986079950,26.84536777,230.9,230.72,0.15815]
[1737986080151,26.84536777,230.9,230.73,0.86681402]
[1737986080352,2.9594,231.01,230.73,0.86681402]
[1737986080353,26.84536777,230.86,230.73,0.86681402]
[1737986080548,4.3324,230.84,230.73,5.20111402]
[1737986080853,1.6394,230.85,230.73,0.86681402]
[1737986081051,0.03222756,230.81,230.76,0.02969679]
[1737986081548,4.3331,230.8,230.76,0.02969679]
[1737986081745,4.3331,230.8,230.73,0.86681402]
[1737986081746,0.03222756,230.81,230.73,0.86681402]
[1737986082955,0.03222756,230.81,230.75,0.03099597]
[1737986083251,26.84536777,230.76,230.52,26.84536777]
[1737986083450,26.84536777,230.72,230.52,26.84536777]
[1737986083654,1.6489,230.71,230.52,26.84536777]
[1737986084055,1.6489,230.71,230.6,26.84536777]
[1737986084356,0.02924147,230.68,230.63,0.02746335]
[1737986084556,28.49426777,230.84,230.61,5.229]
[1737986084749,4.3331,230.8,230.71,4.3346]
[1737986084954,0.03252188,230.68,230.64,26.84536777]
[1737986085255,1.6489,230.84,230.65,1.3483]
[1737986085654,4.3332,230.79,230.71,4.3346]
[1737986086058,4.3334,230.78,230.69,4.3349]
[1737986086249,0.03151242,230.77,230.73,0.02856211]
[1737986087057,0.03151242,230.77,230.73,4.36286211]
[1737986087357,26.84536777,230.93,230.73,0.02856211]
[1737986087558,4.3313,230.9,230.82,4.3326]
[1737986087757,1.426,230.94,230.76,26.84536777]
[1737986088556,0.03146948,230.87,230.83,0.0276995]
[1737986088855,0.03146948,230.87,230.83,4.3600995]
[1737986089256,0.03146948,230.87,230.83,0.0276995]
[1737986089557,4.36326948,230.87,230.83,0.0276995]
[1737986089956,0.03146948,230.87,230.83,0.0276995]
[1737986090758,1.6359,230.99,230.84,26.84536777]
[1737986091261,26.84536777,230.98,230.76,26.84536777]
[1737986091757,1.4316,230.97,230.76,26.84536777]
[1737986091957,1.3559,231.05,230.73,1.4293]
[1737986091958,2.501e-05,230.89,230.86,26.84536777]
[1737986092358,1.3559,231.05,230.86,26.84536777]
[1737986092552,4.3291,231.01,230.93,4.3305]
[1737986092757,4.3291,231.01,230.87,1.3577]
[1737986093058,1.3559,231.05,230.9,26.84536777]
[1737986093258,1.3559,231.05,230.92,0.03121228]
[1737986093454,1.3559,231.05,230.94,26.84536777]
[1737986093658,1.3893,231.11,230.94,26.84536777]
[1737986094159,1.3893,231.11,231.0,0.03231947]
[1737986094562,4.328,231.07,231.0,4.36151947]
[1737986095059,4.3282,231.06,231.0,0.03231947]
[1737986095460,1.3893,231.11,231.0,0.03231947]
[1737986095658,26.84536777,231.26,231.07,4.3279]
[1737986095862,1.3893,231.25,231.05,26.84536777]
[1737986096055,3.0388,231.25,231.14,0.02807263]
[1737986096253,4.327,231.12,231.05,26.84536777]
[1737986096458,3.0388,231.25,231.05,26.84536777]
[1737986096964,4.3261,231.17,231.07,4.3279]
[1737986097364,3.0388,231.25,231.05,26.84536777]
[1737986097563,0.03045221,231.14,231.1,0.03300633]
[1737986097763,26.84536777,231.22,231.01,28.25246777]
[1737986097958,4.3273,231.11,231.02,4.3288]
[1737986098164,0.03003464,231.14,231.1,0.0274683]
[1737986098364,1.3893,231.17,230.96,101.10536777]
[1737986098564,0.02874185,231.14,231.1,0.03128036]
[1737986098759,1.3893,231.17,231.0,26.84536777]
[1737986098964,0.03189898,231.14,231.1,0.02997291]
[1737986099165,1.3893,231.17,231.04,26.84536777]
[1737986099467,0.03251407,231.14,231.1,0.03024662]
[1737986100668,4.3272,231.11,231.1,0.03024662]
[1737986101472,0.03251407,231.14,231.1,0.03024662]
[1737986102268,0.03251407,231.14,231.0,26.84536777]
[1737986102465,26.84536777,231.19,230.96,101.10536777]